bitfinex/quotes_BTCUSD_20250615
["timestamp","ask_amount","ask_price","bid_price","bid_amount"]
[1750000800769,5.99004989,105770.0,105760.0,0.04052542]
[1750000801012,6.18524989,105770.0,105760.0,0.04052542]
[1750000801446,6.18524989,105770.0,105760.0,0.02277241]
[1750000801448,6.18524989,105770.0,105760.0,0.04052542]
[1750000802132,6.18524989,105770.0,105760.0,0.02277241]
[1750000802384,6.18524989,105770.0,105760.0,0.04052238]
[1750000802861,6.18524989,105770.0,105760.0,0.04052237]
[1750000803763,6.28139911,105770.0,105760.0,0.02277241]
[1750000803998,6.28139911,105770.0,105760.0,0.04052237]
[1750000804225,6.28139911,105770.0,105760.0,0.04052243]
[1750000804686,6.28139911,105770.0,105760.0,0.02277241]
[1750000804928,6.28139911,105770.0,105760.0,0.04052243]
[1750000805221,6.28139911,105770.0,105760.0,0.02277241]
[1750000805620,6.28139911,105770.0,105760.0,0.04052243]
[1750000805839,6.28139911,105770.0,105760.0,0.04052256]
[1750000806060,6.28139911,105770.0,105760.0,0.0405226]
[1750000806503,6.18524989,105770.0,105760.0,0.0405226]
[1750000806724,6.18524989,105770.0,105760.0,0.04052258]
[1750000806948,6.18524989,105770.0,105760.0,0.04052256]
[1750000807712,5.38556229,105770.0,105760.0,0.04052255]
[1750000807909,6.18524989,105770.0,105760.0,0.04052255]
[1750000808157,6.18524989,105770.0,105760.0,0.02277241]
[1750000808587,6.18524989,105770.0,105760.0,0.04052255]
[1750000809100,6.18524989,105770.0,105760.0,0.02277241]
[1750000809314,6.18524989,105770.0,105760.0,0.0405225]
[1750000809524,6.18524989,105770.0,105760.0,0.04052249]
[1750000809966,6.18524989,105770.0,105760.0,0.02277241]
[1750000810194,6.28139911,105770.0,105760.0,0.04052249]
[1750000810422,6.88588671,105770.0,105760.0,0.02277241]
[1750000810879,6.78973749,105770.0,105760.0,0.0405226]
[1750000811112,6.18524989,105770.0,105760.0,0.02277241]
[1750000811334,6.18524989,105770.0,105760.0,0.0405226]
[1750000812273,6.18524989,105770.0,105760.0,0.02277241]
[1750000812509,5.38607423,105770.0,105760.0,0.2544853]
[1750000812758,6.14548183,105770.0,105760.0,0.26394049]
[1750000812934,6.14548183,105770.0,105760.0,0.26393942]
[1750000813219,6.14548183,105770.0,105760.0,0.25564539]
[1750000813441,6.14548183,105770.0,105760.0,0.26139038]
[1750000813954,0.96439521,105770.0,105760.0,0.28859706]
[1750000814202,1.37704743,105770.0,105760.0,0.32633332]
[1750000814407,1.37704823,105770.0,105760.0,0.29912748]
[1750000814620,1.37704823,105770.0,105760.0,0.30862111]
[1750000814842,1.36759429,105770.0,105760.0,0.30746231]
[1750000815058,1.35814027,105770.0,105760.0,0.24855603]
[1750000815276,1.35814027,105770.0,105760.0,0.23080491]
[1750000815489,1.35814027,105770.0,105760.0,0.24855622]
[1750000815702,1.35814027,105770.0,105760.0,0.24855636]
[1750000815919,1.35814027,105770.0,105760.0,0.2485564]
[1750000816136,1.35814027,105770.0,105760.0,0.24855632]
[1750000816351,1.35814027,105770.0,105760.0,0.25801135]
[1750000816564,1.35814027,105770.0,105760.0,0.26746636]
[1750000816843,1.35814027,105770.0,105760.0,0.28276634]
[1750000817063,1.35814027,105770.0,105760.0,0.28276632]
[1750000817285,1.34868598,105770.0,105760.0,0.27331131]
[1750000817506,1.30840598,105770.0,105760.0,0.25556001]
[1750000817725,1.30840598,105770.0,105760.0,0.30872123]
[1750000817950,1.30840598,105770.0,105760.0,0.30872108]
[1750000818140,1.30840598,105770.0,105760.0,0.33702662]
[1750000818399,1.30840598,105770.0,105760.0,0.31927567]
[1750000818618,1.30840598,105770.0,105760.0,0.33702652]
[1750000818838,1.30840598,105770.0,105760.0,0.31927567]
[1750000819025,1.30840598,105770.0,105760.0,0.33702647]
[1750000819276,1.30840598,105770.0,105760.0,0.33702645]
[1750000819478,1.30840598,105770.0,105760.0,0.31927567]
[1750000819691,1.30840598,105770.0,105760.0,0.33702645]
[1750000819937,1.30840598,105770.0,105760.0,0.30872018]
[1750000820149,1.30840598,105770.0,105760.0,0.2744694]
[1750000820371,1.30840598,105770.0,105760.0,0.29222018]
[1750000821282,1.30840598,105770.0,105760.0,0.2744694]
[1750000821501,1.30840598,105770.0,105760.0,0.29222018]
[1750000822105,1.30840598,105770.0,105760.0,0.2744694]
[1750000822322,1.30840598,105770.0,105760.0,0.29217629]
[1750000822548,1.30840598,105770.0,105760.0,0.2744694]
[1750000822974,1.30840598,105770.0,105760.0,0.29217629]
[1750000824285,1.15348598,105770.0,105760.0,0.2744694]
[1750000824577,1.30836598,105770.0,105760.0,0.29217629]
[1750000824798,1.30836598,105770.0,105760.0,0.29217587]
[1750000825010,1.30811544,105770.0,105760.0,0.32048214]
[1750000825223,1.30811544,105770.0,105760.0,0.29217587]
[1750000825862,1.30811544,105770.0,105760.0,0.2744694]
[1750000826066,1.30811544,105770.0,105760.0,0.29217587]
[1750000826276,1.30811544,105770.0,105760.0,0.32048209]
[1750000826484,1.30811544,105770.0,105760.0,0.30277567]
[1750000826699,1.30811544,105770.0,105760.0,0.31102725]
[1750000827350,1.30811544,105770.0,105760.0,0.29572724]
[1750000827565,1.30811544,105770.0,105760.0,0.27802084]
[1750000827987,1.30811544,105770.0,105760.0,0.29572724]
[1750000828427,1.30811544,105770.0,105760.0,0.27802084]
[1750000828633,1.30811544,105770.0,105760.0,0.29572725]
[1750000829084,1.30811544,105770.0,105760.0,0.27802084]
[1750000829512,1.30811544,105770.0,105760.0,0.29572724]
[1750000829738,1.30811544,105770.0,105760.0,0.29572725]
[1750000830213,1.30811544,105770.0,105760.0,0.27802084]
[1750000830428,1.30811544,105770.0,105760.0,0.26856592]
[1750000830647,1.30811544,105770.0,105760.0,0.25796647]
[1750000830887,1.30811544,105770.0,105760.0,0.24025965]
[1750000831112,1.30811544,105770.0,105760.0,0.25796661]
[1750000831319,1.30811544,105770.0,105760.0,0.24025965]
[1750000831570,1.30811544,105770.0,105760.0,0.25796661]
[1750000831790,1.30811544,105770.0,105760.0,0.24025965]
[1750000832292,1.30811544,105770.0,105760.0,0.25801049]
[1750000832511,1.30811544,105770.0,105760.0,0.24025965]
[1750000832731,1.30811544,105770.0,105760.0,0.25801049]
[1750000833166,1.30811544,105770.0,105760.0,0.24025965]
[1750000833406,1.30811544,105770.0,105760.0,0.25801049]
[1750000833852,1.30811544,105770.0,105760.0,0.24025965]
[1750000834085,1.33026106,105770.0,105760.0,0.23910056]
[1750000834299,1.33026106,105770.0,105760.0,0.24855621]
[1750000834511,1.33026106,105770.0,105760.0,0.230805]
[1750000834728,1.33026106,105770.0,105760.0,0.24855621]
[1750000835618,1.33026106,105770.0,105760.0,0.24026019]
[1750000835830,1.33026106,105770.0,105760.0,0.2580114]
[1750000836285,1.33026106,105770.0,105760.0,0.24026019]
[1750000836497,1.33026106,105770.0,105760.0,0.25801138]
[1750000836716,1.33026106,105770.0,105760.0,0.25801137]
[1750000836931,1.33026106,105770.0,105760.0,0.26746623]
[1750000837157,1.33026106,105770.0,105760.0,0.24971529]
[1750000837432,1.33026106,105770.0,105760.0,0.26746614]
[1750000837896,1.33026106,105770.0,105760.0,0.24971529]
[1750000838123,1.33026106,105770.0,105760.0,0.26746614]
[1750000840613,1.33026106,105770.0,105760.0,0.29577241]
[1750000840836,1.37050106,105770.0,105760.0,0.27802156]
[1750000841047,1.37050106,105770.0,105760.0,0.29577241]
[1750000841255,1.37050106,105770.0,105760.0,0.27802156]
[1750000841688,1.37050106,105770.0,105760.0,0.29577241]
[1750000841902,1.37050106,105770.0,105760.0,0.27802156]
[1750000842045,1.37050106,105770.0,105760.0,0.29577039]
[1750000842659,1.37050106,105770.0,105760.0,0.27802156]
[1750000842876,1.46665028,105770.0,105760.0,0.28747657]
[1750000843082,1.46665028,105770.0,105760.0,0.30522535]
[1750000843301,1.46665028,105770.0,105760.0,0.30522534]
[1750000843507,0.34074946,105770.0,105760.0,0.29576997]
[1750000843721,0.96414458,105770.0,105760.0,0.3052247]
[1750000843990,0.94523706,105770.0,105760.0,0.28747594]
[1750000844196,1.10011706,105770.0,105760.0,0.33832427]
[1750000844405,1.10011706,105770.0,105760.0,0.33832419]
[1750000844623,0.95469073,105770.0,105760.0,0.33832419]
[1750000844830,1.10011706,105770.0,105760.0,0.37582702]
[1750000845034,1.10011706,105770.0,105760.0,0.37582699]
[1750000845238,1.10011706,105770.0,105760.0,0.37582698]
[1750000845655,1.10011706,105770.0,105760.0,0.37582668]
[1750000846073,1.10011706,105770.0,105760.0,0.37582661]
[1750000846310,0.49562946,105770.0,105760.0,0.35807911]
[1750000846512,1.10011706,105770.0,105760.0,0.35807911]
[1750000846928,1.10011706,105770.0,105760.0,0.37582658]
[1750000847172,1.10011706,105770.0,105760.0,0.34752022]
[1750000847375,0.95469082,105770.0,105760.0,0.34752022]
[1750000847596,1.11902467,105770.0,105760.0,0.35922078]
[1750000847837,1.11902467,105770.0,105760.0,0.35921835]
[1750000848048,1.11902467,105770.0,105760.0,0.34147097]
[1750000848258,1.10957082,105770.0,105760.0,0.34147097]
[1750000848462,1.10957082,105770.0,105760.0,0.35921835]
[1750000848672,1.10957082,105770.0,105760.0,0.35921834]
[1750000848878,1.10957082,105770.0,105760.0,0.35921838]
[1750000849108,1.10957082,105770.0,105760.0,0.35921831]
[1750000849511,1.10957082,105770.0,105760.0,0.35921832]
[1750000849723,1.10957082,105770.0,105760.0,0.34271832]
[1750000850451,1.10957082,105770.0,105760.0,0.34271836]
[1750000850906,1.10957082,105770.0,105760.0,0.32497097]
[1750000851128,1.10957082,105770.0,105760.0,0.34271836]
[1750000851346,1.10957082,105770.0,105760.0,0.34271834]
[1750000851347,1.10011706,105770.0,105760.0,0.34271834]
[1750000851597,1.11902449,105770.0,105760.0,0.34271834]
[1750000852256,1.12847834,105770.0,105760.0,0.3427204]
[1750000852467,1.12847834,105770.0,105760.0,0.34272035]
[1750000852874,1.11902449,105770.0,105760.0,0.34272039]
[1750000853082,1.11902449,105770.0,105760.0,0.34272037]
[1750000853349,1.11902449,105770.0,105760.0,0.34272036]
[1750000853842,1.12847843,105770.0,105760.0,0.34272036]
[1750000854282,1.12847843,105770.0,105760.0,0.34272038]
[1750000854515,1.12847843,105770.0,105760.0,0.32497097]
[1750000854729,1.12847834,105770.0,105760.0,0.34272038]
[1750000855186,1.14487834,105770.0,105760.0,0.34272038]
[1750000855383,1.15433228,105770.0,105760.0,0.34272038]
[1750000856048,1.13793228,105770.0,105760.0,0.34272038]
[1750000856503,1.13793228,105770.0,105760.0,0.32497097]
[1750000856724,1.14738639,105770.0,105760.0,0.34272038]
[1750000856937,1.13793228,105770.0,105760.0,0.34272038]
[1750000857155,1.13793228,105770.0,105760.0,0.32497097]
[1750000857583,1.13793228,105770.0,105760.0,0.34272038]
[1750000857804,1.14738639,105770.0,105760.0,0.34272038]
[1750000858021,1.16328639,105770.0,105760.0,0.34272038]
[1750000858230,1.16328639,105770.0,105760.0,0.32497097]
[1750000858457,1.16328701,105770.0,105760.0,0.32497097]
[1750000858673,1.46502647,105770.0,105760.0,0.32497115]
[1750000858890,1.36887725,105770.0,105760.0,0.30518726]
[1750000859150,1.3594234,105770.0,105760.0,0.2579134]
[1750000859364,1.3594234,105770.0,105760.0,0.24964758]
[1750000859604,1.3594234,105770.0,105760.0,0.26736895]
[1750000859820,1.45557262,105770.0,105760.0,0.29573407]
[1750000860036,1.44611868,105770.0,105760.0,0.26743593]
[1750000860249,1.44611868,105770.0,105760.0,0.25798102]
[1750000860489,1.44611868,105770.0,105760.0,0.26855778]
[1750000860716,1.44611868,105770.0,105760.0,0.25791384]
[1750000860967,1.43666457,105770.0,105760.0,0.24852619]
[1750000861177,1.43666457,105770.0,105760.0,0.24852634]
[1750000861404,1.43666457,105770.0,105760.0,0.24852642]
[1750000861631,1.43666457,105770.0,105760.0,0.26743653]
[1750000861869,1.43666457,105770.0,105760.0,0.26743649]
[1750000862094,1.43666457,105770.0,105760.0,0.24971493]
[1750000862352,1.43666457,105770.0,105760.0,0.26743648]
[1750000863236,1.43666457,105770.0,105760.0,0.24852637]
[1750000863459,1.33106106,105770.0,105760.0,0.2296159]
[1750000863700,6.12785735,105770.0,105760.0,0.04050894]
[1750000863914,6.12785735,105770.0,105760.0,0.04050909]
[1750000864133,6.12785735,105770.0,105760.0,0.04050916]
[1750000864363,6.22400657,105770.0,105760.0,0.04050916]
[1750000864810,6.22400657,105770.0,105760.0,0.04050923]
[1750000865037,6.22400657,105770.0,105760.0,0.02278694]
[1750000865271,6.22400657,105770.0,105760.0,0.04050919]
[1750000865498,6.22400657,105770.0,105760.0,0.0405092]
[1750000865728,6.22400657,105770.0,105760.0,0.04050918]
[1750000865951,6.22400657,105770.0,105760.0,0.04050916]
[1750000866173,6.22400657,105770.0,105760.0,0.02278694]
[1750000866414,6.22400657,105770.0,105760.0,0.04050917]
[1750000866885,6.22400657,105770.0,105760.0,0.04050921]
[1750000867332,6.22400657,105770.0,105760.0,0.2296166]
[1750000867550,6.22400657,105770.0,105760.0,0.04050915]
[1750000867768,6.22400657,105770.0,105760.0,0.04050918]
[1750000867985,6.22400657,105770.0,105760.0,0.02278694]
[1750000868441,6.22400657,105770.0,105760.0,0.0405092]
[1750000868679,6.25243057,105770.0,105760.0,0.0405092]
[1750000868902,6.25243057,105770.0,105760.0,0.02278694]
[1750000869126,6.25243057,105770.0,105760.0,0.0405092]
[1750000869448,6.25243057,105770.0,105760.0,0.04050932]
[1750000869592,6.25243057,105770.0,105760.0,0.00014192]
[1750000869812,6.25243057,105770.0,105760.0,0.0178649]
[1750000870548,6.25243057,105770.0,105760.0,0.00014192]
[1750000870787,6.85691817,105770.0,105760.0,0.01786531]
[1750000871026,6.85691817,105770.0,105760.0,0.01786535]
[1750000871250,6.85691817,105770.0,105760.0,0.01786657]
[1750000871479,6.903085,105770.0,105760.0,0.00014192]
[1750000871699,0.24023718,105750.0,105740.0,0.02262802]
[1750000871921,1.81747023,105750.0,105740.0,0.04082679]
[1750000872147,1.81747023,105750.0,105740.0,0.02310139]
[1750000872379,1.81747023,105750.0,105740.0,0.04085654]
[1750000872663,1.81747023,105750.0,105740.0,0.00047337]
[1750000872877,1.81747023,105750.0,105740.0,0.01822879]
[1750000873317,1.81747023,105750.0,105740.0,0.01822912]
[1750000873527,1.81747023,105750.0,105740.0,0.00047337]
[1750000873745,1.81747023,105750.0,105740.0,0.01822914]
[1750000873978,1.81947023,105750.0,105740.0,0.00047337]
[1750000874198,1.87966119,105750.0,105740.0,0.01822915]
[1750000874636,1.85089923,105750.0,105740.0,0.01822915]
[1750000875508,1.85089923,105750.0,105740.0,0.00047337]
[1750000875740,1.85089923,105750.0,105740.0,0.01822916]
[1750000875957,1.85089923,105750.0,105740.0,0.00047337]
[1750000877526,1.65581923,105750.0,105740.0,0.00047337]
[1750000877749,1.85089923,105750.0,105740.0,0.00047337]
[1750000877968,0.56498794,105750.0,105740.0,0.00047337]
[1750000878206,1.77396314,105750.0,105740.0,0.00047337]
[1750000878604,1.57888314,105750.0,105740.0,0.00047337]
[1750000878810,1.77396314,105750.0,105740.0,0.00047337]
[1750000879226,1.80276158,105750.0,105740.0,0.00047337]
[1750000879442,1.8989108,105750.0,105740.0,0.00047337]
[1750000884114,6.6089198,105750.0,105740.0,0.00047337]
[1750000884836,6.4540798,105750.0,105740.0,0.00047337]
[1750000885295,6.6089198,105750.0,105740.0,0.00047337]
[1750000886820,6.4540798,105750.0,105740.0,0.00047337]
[1750000887458,6.6089198,105750.0,105740.0,0.00047337]
[1750000888122,6.4540798,105750.0,105740.0,0.00047337]
[1750000888379,6.51277058,105750.0,105740.0,0.00047337]
[1750000888626,6.31769058,105750.0,105740.0,0.00047337]
[1750000888859,6.51277058,105750.0,105740.0,0.00047337]
[1750000889316,5.09221538,105750.0,105740.0,0.19907353]
[1750000889563,0.65682795,105750.0,105740.0,0.22628546]
[1750000889782,1.12323877,105750.0,105740.0,0.28983101]
[1750000890016,1.13269458,105750.0,105740.0,0.27207647]
[1750000890245,1.13269458,105750.0,105740.0,0.28982997]
[1750000890703,1.14215057,105750.0,105740.0,0.28982995]
[1750000890933,1.06549742,105750.0,105740.0,0.28982998]
[1750000891197,1.07495341,105750.0,105740.0,0.27207647]
[1750000891402,1.13471519,105750.0,105740.0,0.28982995]
[1750000891626,1.13471519,105750.0,105740.0,0.27332995]
[1750000891843,1.3238412,105750.0,105740.0,0.24057647]
[1750000892072,1.3238412,105750.0,105740.0,0.25833051]
[1750000892289,1.3238412,105750.0,105740.0,0.2583306]
[1750000892503,1.3238412,105750.0,105740.0,0.24887407]
[1750000892725,1.3238412,105750.0,105740.0,0.24887391]
[1750000892941,1.12525965,105750.0,105740.0,0.25833043]
[1750000893378,1.3238412,105750.0,105740.0,0.25833034]
[1750000893602,1.3238412,105750.0,105740.0,0.25833033]
[1750000893826,1.13471591,105750.0,105740.0,0.25833056]
[1750000894015,1.13471591,105750.0,105740.0,0.25833034]
[1750000894261,1.12525965,105750.0,105740.0,0.25833023]
[1750000894503,1.31438548,105750.0,105740.0,0.24887375]
[1750000894751,1.31438548,105750.0,105740.0,0.24883687]
[1750000894976,1.31438548,105750.0,105740.0,0.24883702]
[1750000895192,1.12526019,105750.0,105740.0,0.24057656]
[1750000895415,1.31438548,105750.0,105740.0,0.26775]
[1750000895630,1.30492994,105750.0,105740.0,0.23938011]
[1750000895855,1.31811769,105750.0,105740.0,0.23938066]
[1750000896073,1.30866143,105750.0,105740.0,0.23938066]
[1750000896526,1.30866143,105750.0,105740.0,0.23938111]
[1750000896736,1.30866143,105750.0,105740.0,0.24883792]
[1750000896950,1.30866143,105750.0,105740.0,0.23938107]
[1750000897169,1.30866143,105750.0,105740.0,0.23938067]
[1750000897393,1.30866143,105750.0,105740.0,0.2216634]
[1750000897612,1.30866143,105750.0,105740.0,0.24883769]
[1750000897832,1.30866143,105750.0,105740.0,0.24057727]
[1750000898064,1.30866143,105750.0,105740.0,0.25003407]
[1750000898489,1.30866143,105750.0,105740.0,0.26775129]
[1750000898935,1.30866143,105750.0,105740.0,0.26775155]
[1750000899166,1.30866143,105750.0,105740.0,0.25829476]
[1750000899694,1.30866143,105750.0,105740.0,0.2216634]
[1750000900169,1.40490319,105750.0,105740.0,0.04078063]
[1750000900397,1.43333219,105750.0,105740.0,0.04078082]
[1750000900625,1.43333219,105750.0,105740.0,0.04078083]
[1750000901135,1.43333219,105750.0,105740.0,0.02306307]
[1750000901354,0.90120206,105750.0,105740.0,0.27449449]
[1750000901580,0.345,105750.0,105740.0,0.29069362]
[1750000901811,0.345,105750.0,105740.0,0.30122974]
[1750000902023,0.49984,105750.0,105740.0,0.31894566]
[1750000902240,0.49984,105750.0,105740.0,0.30122974]
[1750000902457,0.49984,105750.0,105740.0,0.31894559]
[1750000902671,0.49984,105750.0,105740.0,0.31894546]
[1750000902887,0.49984,105750.0,105740.0,0.30122974]
[1750000903101,0.49984,105750.0,105740.0,0.31894551]
[1750000903541,0.49984,105750.0,105740.0,0.30122974]
[1750000904210,0.49984,105750.0,105740.0,0.31894551]
[1750000904451,0.49984,105750.0,105740.0,0.30122974]
[1750000904668,0.49984,105750.0,105740.0,0.31894551]
[1750000904928,0.49984,105750.0,105740.0,0.30122974]
[1750000905365,0.49984,105750.0,105740.0,0.31894528]
[1750000905590,0.49984,105750.0,105740.0,0.31894529]
[1750000905805,0.49984,105750.0,105740.0,0.31894525]
[1750000906022,0.49984,105750.0,105740.0,0.30122974]
[1750000906228,0.49984,105750.0,105740.0,0.33873291]
[1750000906648,0.49984,105750.0,105740.0,0.3564852]
[1750000906852,0.49984,105750.0,105740.0,0.33873291]
[1750000907069,0.49984,105750.0,105740.0,0.35648517]
[1750000907269,0.49984,105750.0,105740.0,0.33873291]
[1750000907744,0.49984,105750.0,105740.0,0.35648517]
[1750000908184,0.49984,105750.0,105740.0,0.33873291]
[1750000908629,0.49984,105750.0,105740.0,0.35648517]
[1750000908895,0.49984,105750.0,105740.0,0.33873291]
[1750000909131,0.49984,105750.0,105740.0,0.35648517]
[1750000909360,0.345,105750.0,105740.0,0.35648504]
[1750000909589,0.49984,105750.0,105740.0,0.35648504]
[1750000909821,0.15984,105750.0,105740.0,0.33873291]
[1750000910072,0.15984,105750.0,105740.0,0.35648479]
[1750000910301,0.1598,105750.0,105740.0,0.31047981]
[1750000910539,0.1598,105750.0,105740.0,0.33873305]
[1750000910807,0.1598,105750.0,105740.0,0.35648473]
[1750000911030,0.005,105750.0,105740.0,0.35648472]
[1750000911243,0.005,105750.0,105740.0,0.33873305]
[1750000911457,0.005,105750.0,105740.0,0.35648472]
[1750000912591,0.005,105750.0,105740.0,0.33873305]
[1750000913043,0.005,105750.0,105740.0,0.35648472]
[1750000913268,0.005,105750.0,105740.0,1.01823325]
[1750000913487,0.005,105750.0,105740.0,0.98072966]
[1750000913704,0.005,105750.0,105740.0,0.44343922]
[1750000913923,0.005,105750.0,105740.0,0.44343877]
[1750000914135,0.003,105750.0,105740.0,0.42568862]
[1750000914347,0.003,105750.0,105740.0,0.44343881]
[1750000914549,0.1548,105760.0,105750.0,0.24949299]
[1750000914763,0.1548,105760.0,105750.0,0.33796419]
[1750000914977,0.1548,105760.0,105750.0,0.35571424]
[1750000915156,0.1548,105760.0,105750.0,0.37466426]
[1750000915425,0.1548,105760.0,105750.0,0.35571432]
[1750000915634,0.1548,105760.0,105750.0,0.33796419]
[1750000916142,0.90565181,105770.0,105760.0,0.21747244]
[1750000916143,0.87729044,105770.0,105760.0,0.21747244]
[1750000916398,0.87729044,105770.0,105760.0,0.25773659]
[1750000916399,0.4948,105770.0,105760.0,0.25773659]
[1750000916612,0.50425367,105770.0,105760.0,0.28597128]
[1750000917575,0.51370752,105770.0,105760.0,0.26829707]
[1750000917819,0.50725367,105770.0,105760.0,0.26829707]
[1750000918047,0.50725367,105770.0,105760.0,0.28597128]
[1750000918502,0.50925367,105770.0,105760.0,0.26829707]
[1750000918736,1.04654411,105770.0,105760.0,0.26829707]
[1750000919206,1.04654411,105770.0,105760.0,0.28597128]
[1750000919669,1.04654411,105770.0,105760.0,0.26829707]
[1750000919905,1.04654411,105770.0,105760.0,0.28597128]
[1750000920396,1.04654411,105770.0,105760.0,0.26829707]
[1750000920596,1.04654411,105770.0,105760.0,0.28597128]
[1750000920862,0.88229044,105770.0,105760.0,0.26829707]
[1750000921355,0.005,105770.0,105760.0,0.97087584]
[1750000921593,0.005,105770.0,105760.0,0.99911113]
[1750000921826,0.005,105770.0,105760.0,0.96146456]
[1750000922068,0.005,105770.0,105760.0,1.07433519]
[1750000922304,0.003,105770.0,105760.0,0.61233838]
[1750000922547,0.003,105770.0,105760.0,1.07433519]
[1750000922826,0.004,105770.0,105760.0,1.09200494]
[1750000923057,0.004,105770.0,105760.0,1.1672986]
[1750000923294,0.003,105770.0,105760.0,1.16729845]
[1750000923527,0.003,105770.0,105760.0,1.09300478]
[1750000923793,0.91814634,105800.0,105790.0,0.21741076]
[1750000924083,1.08235733,105800.0,105790.0,0.25766974]
[1750000924303,1.08235733,105800.0,105790.0,0.24000046]
[1750000924522,0.39030689,105800.0,105790.0,0.25766966]
[1750000924738,1.1012601,105800.0,105790.0,0.25774531]
[1750000924954,1.1012601,105800.0,105790.0,0.24000046]
[1750000925168,1.1009426,105800.0,105790.0,0.25874581]
[1750000925406,1.1009426,105800.0,105790.0,0.24100046]
[1750000925618,1.11039403,105800.0,105790.0,0.25868309]
[1750000925842,1.1009426,105800.0,105790.0,0.23615598]
[1750000926072,1.1009426,105800.0,105790.0,0.25868295]
[1750000926290,1.11039403,105800.0,105790.0,0.23615574]
[1750000926500,1.1009426,105800.0,105790.0,0.25867833]
[1750000926750,1.1009426,105800.0,105790.0,0.25857009]
[1750000926974,1.1009426,105800.0,105790.0,0.25857013]
[1750000927201,1.1009426,105800.0,105790.0,0.25857044]
[1750000927434,1.1009426,105800.0,105790.0,0.25857041]
[1750000927656,1.1009426,105800.0,105790.0,0.25856732]
[1750000927879,1.09149135,105800.0,105790.0,0.25856732]
[1750000928105,1.10094252,105800.0,105790.0,0.25856728]
[1750000928323,1.10094252,105800.0,105790.0,0.24093047]
[1750000928769,1.10094252,105800.0,105790.0,0.25856725]
[1750000928990,1.10094252,105800.0,105790.0,0.24093047]
[1750000929212,1.11039386,105800.0,105790.0,0.25856726]
[1750000929398,1.09149135,105800.0,105790.0,0.24093047]
[1750000929834,1.11039377,105800.0,105790.0,0.25856726]
[1750000930068,1.11039377,105800.0,105790.0,0.25856725]
[1750000930282,1.11039377,105800.0,105790.0,0.25856726]
[1750000930767,1.11039377,105800.0,105790.0,0.24093047]
[1750000931201,1.11039377,105800.0,105790.0,0.25856726]
[1750000931416,1.11984529,105800.0,105790.0,0.24093047]
[1750000931635,1.11039377,105800.0,105790.0,0.25856726]
[1750000931873,1.11984529,105800.0,105790.0,0.24093047]
[1750000932337,1.11039377,105800.0,105790.0,0.24093047]
[1750000933213,0.34913402,105800.0,105790.0,0.24093047]
[1750000933402,0.34913402,105800.0,105790.0,0.27313047]
[1750000934281,0.00913402,105800.0,105790.0,0.93484038]
[1750000934505,0.34913402,105800.0,105790.0,0.97241066]
[1750000934750,0.00913402,105800.0,105790.0,0.43512022]
[1750000935181,0.00513402,105800.0,105790.0,0.43512022]
[1750000935408,0.00513402,105800.0,105790.0,1.12713066]
[1750000935630,0.00613402,105800.0,105790.0,1.09895295]
[1750000936091,0.00613402,105800.0,105790.0,0.56166251]
[1750000936308,0.00113402,105800.0,105790.0,0.56066251]
[1750000936732,0.00213402,105800.0,105790.0,0.58878799]
[1750000937600,0.00213402,105800.0,105790.0,0.43406799]
[1750000937824,0.00213402,105800.0,105790.0,1.09795295]
[1750000938038,0.00213402,105800.0,105790.0,1.15430838]
[1750000939060,0.00113402,105800.0,105790.0,1.15430838]
[1750000939656,0.00013402,105800.0,105790.0,1.1167381]
[1750000939829,0.00113402,105800.0,105790.0,1.1237381]
[1750000940079,0.00113402,105800.0,105790.0,0.41552766]
[1750000940318,0.56992446,105800.0,105790.0,0.59174506]
[1750000940561,0.66186191,105800.0,105790.0,0.3125557]
[1750000940781,1.1660329,105800.0,105790.0,0.2750583]
[1750000941480,1.1660329,105800.0,105790.0,0.2720583]
[1750000941481,1.17548407,105800.0,105790.0,0.2720583]
[1750000941933,0.52735402,105800.0,105790.0,0.2730583]
[1750000942164,1.06464446,105800.0,105790.0,0.2730583]
[1750000942595,1.06364446,105800.0,105790.0,0.2690583]
[1750000942830,1.06364446,105800.0,105790.0,0.2710583]
[1750000944580,1.07309545,105800.0,105790.0,0.2710583]
[1750000944800,1.0825467,105800.0,105790.0,0.2710583]
[1750000945013,1.09199804,105800.0,105790.0,0.2710583]
[1750000945233,1.0825467,105800.0,105790.0,0.2710583]
[1750000945660,1.18814735,105800.0,105790.0,0.2710583]
[1750000945875,1.17869592,105800.0,105790.0,0.2710583]
[1750000946605,1.19759887,105800.0,105790.0,0.2710583]
[1750000947040,1.19759878,105800.0,105790.0,0.2710583]
[1750000947265,0.52635402,105800.0,105790.0,0.2710583]
[1750000947455,0.5358051,105800.0,105790.0,0.2710583]
[1750000948237,0.52635402,105800.0,105790.0,0.2710583]
[1750000948645,0.53580501,105800.0,105790.0,0.2710583]
[1750000949091,0.54525618,105800.0,105790.0,0.2710583]
[1750000949299,1.08254662,105800.0,105790.0,0.2710583]
[1750000949502,1.06364446,105800.0,105790.0,0.3085557]
[1750000949684,1.07309545,105800.0,105790.0,0.3085557]
[1750000949908,1.06364446,105800.0,105790.0,0.3085557]
[1750000950517,1.06364446,105800.0,105790.0,0.28042787]
[1750000950725,1.07309554,105800.0,105790.0,0.30866332]
[1750000951043,1.06364446,105800.0,105790.0,0.30866332]
[1750000951375,1.07309554,105800.0,105790.0,0.30866332]
[1750000951990,1.07309545,105800.0,105790.0,0.30866332]
[1750000953485,1.06364446,105800.0,105790.0,0.30866332]
[1750000954636,1.07309545,105800.0,105790.0,0.30866332]
[1750000955078,1.06364446,105800.0,105790.0,0.30866332]
[1750000956592,1.06364446,105800.0,105790.0,0.28042787]
[1750000957026,0.35573402,105800.0,105790.0,0.28042787]
[1750000957243,0.49481402,105800.0,105790.0,0.3367833]
[1750000958127,0.34013402,105800.0,105790.0,0.44842506]
[1750000958600,0.34013402,105800.0,105790.0,0.43302506]
[1750000959061,0.34013402,105800.0,105790.0,0.41050535]
[1750000959312,0.34013402,105800.0,105790.0,0.31665252]
[1750000959559,0.00013402,105800.0,105790.0,0.33205252]
[1750000959806,0.00013402,105800.0,105790.0,0.36974985]
[1750000960534,0.00013402,105800.0,105790.0,0.4639054]
[1750000960778,0.00013402,105800.0,105790.0,0.39574318]
[1750000961457,0.00013402,105800.0,105790.0,0.33924985]
[1750000961672,0.00013402,105800.0,105790.0,0.31665252]
[1750000964061,0.03203402,105800.0,105790.0,0.31665252]
[1750000967128,0.56932446,105800.0,105790.0,0.31665252]
[1750000967344,0.57877563,105800.0,105790.0,0.31665252]
[1750000967782,0.57877563,105800.0,105790.0,0.22041076]
[1750000967783,0.75235849,105800.0,105790.0,0.22041076]
[1750000968017,1.1018101,105800.0,105790.0,0.22041076]
[1750000968497,1.09235849,105800.0,105790.0,0.22041076]
[1750000970502,1.08290697,105800.0,105790.0,0.22041076]
[1750000970735,1.07345563,105800.0,105790.0,0.22041076]
[1750000971085,1.06400446,105800.0,105790.0,0.22041076]
[1750000972378,0.52671402,105800.0,105790.0,0.22041076]
[1750000972972,0.37203402,105800.0,105790.0,0.22041076]
[1750000973321,0.52671402,105800.0,105790.0,0.22041076]
[1750000973526,0.37203402,105800.0,105790.0,0.31665252]